bitfinex-derivatives/quotes_ETHF0:USTF0_20250917
["timestamp","ask_amount","ask_price","bid_price","bid_amount"]
[1758104511756,1.45001458,4488.8,4488.7,0.3165]
[1758104512061,1.45001458,4488.8,4488.5,0.3387]
[1758104512261,0.9348,4488.8,4488.5,0.0222]
[1758104512565,0.3959,4488.6,4488.5,0.0222]
[1758104512764,1.19951484,4488.6,4488.5,0.0222]
[1758104514154,0.91111484,4488.6,4488.1,0.3239]
[1758104514366,0.3959,4488.2,4488.1,0.7432]
[1758104514666,0.6209,4488.2,4488.1,0.7432]
[1758104517168,0.9093,4488.2,4488.1,0.5306]
[1758104518468,0.6209,4488.2,4488.1,0.7432]
[1758104521360,0.4202,4488.2,4488.1,0.7432]
[1758104521567,0.2886,4488.9,4488.1,0.4193]
[1758104521768,0.2886,4488.7,4488.2,0.3094]
[1758104521967,0.7048,4488.7,4488.6,0.509]
[1758104522167,1.22044075,4488.7,4488.6,0.509]
[1758104524170,1.22044075,4488.7,4488.6,0.3094]
[1758104525064,1.22044075,4488.7,4488.6,0.509]
[1758104526172,1.40904531,4488.7,4488.6,0.509]
[1758104528875,1.40904531,4488.7,4488.6,0.3094]
[1758104529675,1.40904531,4488.7,4488.6,0.509]
[1758104531480,1.63404531,4488.7,4488.6,0.509]
[1758104531679,1.34544531,4488.7,4488.6,0.7172]
[1758104532477,0.92924531,4488.7,4488.6,0.7172]
[1758104532876,0.18860456,4488.7,4488.6,0.7172]
[1758104533566,0.60480456,4488.7,4488.6,0.7172]
[1758104533780,1.40911663,4488.7,4488.6,0.7172]
[1758104533978,1.40911663,4488.7,4488.6,0.509]
[1758104534175,1.40911663,4488.7,4488.1,0.3094]
[1758104534483,0.7048,4488.2,4488.1,0.509]
[1758104534679,1.11840456,4488.2,4488.1,0.509]
[1758104538187,0.82980456,4488.2,4488.1,0.7172]
[1758104538686,1.11840456,4488.2,4488.1,0.7172]
[1758104539385,1.63408594,4488.2,4488.1,0.7172]
[1758104539686,1.63408594,4488.2,4488.1,0.509]
[1758104540185,1.34548594,4488.2,4488.1,0.7172]
[1758104540980,1.63408594,4488.2,4488.1,0.7172]
[1758104542383,1.34548594,4488.2,4488.1,0.7172]
[1758104542586,0.92928758,4488.2,4488.1,0.7172]
[1758104543183,1.14278758,4488.2,4488.1,0.7172]
[1758104544285,0.91778758,4488.2,4488.1,0.7172]
[1758104544493,1.14278758,4488.2,4488.1,0.7172]
[1758104545994,1.64088758,4488.2,4488.1,0.7172]
[1758104546193,1.64088758,4488.2,4488.1,0.509]
[1758104546393,1.64088758,4488.2,4487.9,0.3182]
[1758104546591,0.7116,4488.0,4487.9,0.3182]
[1758104546894,1.41588758,4488.0,4487.9,0.296]
[1758104547594,1.41580905,4488.0,4487.9,0.296]
[1758104549393,1.41580905,4488.0,4487.6,0.296]
[1758104549594,0.7116,4487.7,4487.6,0.5115]
[1758104549793,1.125119,4487.7,4487.6,0.5115]
[1758104549996,0.836319,4487.7,4487.6,0.7262]
[1758104551296,1.125119,4487.7,4487.6,0.7262]
[1758104551500,1.125119,4487.7,4487.6,0.296]
[1758104551802,1.64123215,4487.7,4487.1,0.296]
[1758104552101,0.4228,4487.2,4487.1,0.7262]
[1758104552299,0.611319,4487.2,4487.1,0.7262]
[1758104553002,0.413519,4487.2,4487.1,0.7262]
[1758104553301,0.188519,4487.2,4487.1,0.7262]
[1758104555700,0.402019,4487.2,4487.1,0.7262]
[1758104557105,0.188519,4487.2,4487.1,0.7262]
[1758104560706,0.188519,4487.2,4487.1,4.7262]
[1758104560907,0.023,4487.9,4487.8,0.4302]
[1758104561106,0.023,4487.9,4487.8,0.7262]
[1758104561304,0.2365,4487.9,4487.8,0.7262]
[1758104561610,0.023,4487.9,4487.8,0.7262]
[1758104561800,0.225,4488.0,4487.9,0.7262]
[1758104562205,0.4385,4488.1,4488.0,0.1204]
[1758104562410,1.26218098,4488.1,4488.0,0.5506]
[1758104562708,0.95408098,4488.1,4488.0,0.8466]
[1758104563012,0.7309,4488.6,4488.5,0.8466]
[1758104563211,1.47142171,4488.6,4488.5,0.7262]
[1758104564315,1.24642171,4488.6,4488.5,0.7262]
[1758104564518,1.47142171,4488.6,4488.5,0.8466]
[1758104564918,1.47142171,4488.6,4488.5,0.7262]
[1758104569420,1.47142171,4488.6,4488.5,0.8466]
[1758104570314,1.24642171,4488.6,4488.5,0.8466]
[1758104570616,1.16332171,4488.6,4488.5,0.8466]
[1758104570914,0.93832171,4488.6,4488.5,0.8466]
[1758104571424,1.16332171,4488.6,4488.5,0.8466]
[1758104571720,1.47142171,4488.6,4488.5,0.8466]
[1758104572319,1.47142171,4488.6,4488.5,0.7262]
[1758104572920,1.66144695,4488.6,4488.5,0.5115]
[1758104573221,1.43644695,4488.6,4488.5,0.5115]
[1758104573412,1.66144695,4488.6,4488.5,0.5115]
[1758104574319,1.66144695,4488.6,4488.5,0.7167]
[1758104574825,1.35332963,4488.6,4488.5,0.8354]
[1758104575119,0.40350792,4488.6,4488.5,0.8354]
[1758104575415,0.62850792,4488.6,4488.5,0.8354]
[1758104575811,0.72360792,4488.6,4488.5,0.8354]
[1758104576011,0.62850792,4488.6,4488.5,0.8354]
[1758104576212,0.94860792,4488.6,4488.5,0.8354]
[1758104576908,0.41400792,4488.6,4488.5,0.8354]
[1758104577316,0.19000792,4488.6,4488.5,0.8354]
[1758104577516,0.18992547,4488.6,4488.5,0.5394]
[1758104578118,0.18992547,4488.6,4488.5,0.8364]
[1758104579408,0.18984396,4488.6,4488.5,0.8364]
[1758104580419,0.18984396,4488.6,4488.5,4.8364]
[1758104583419,0.3201,4489.9,4489.5,0.8302]
[1758104583723,1.949,4489.8,4489.7,0.7122]
[1758104583926,1.949,4489.8,4489.7,0.2062]
[1758104584119,1.949,4489.8,4489.0,0.118]
[1758104584426,1.949,4489.8,4489.1,0.297]
[1758104586315,0.725,4489.3,4489.2,0.2284]
[1758104586516,0.95,4489.3,4489.2,0.0222]
[1758104589124,0.95,4489.3,4488.5,0.1187]
[1758104589325,0.95,4489.3,4489.2,0.2062]
[1758104590525,0.95,4489.3,4488.5,0.1187]
[1758104590824,0.95,4489.3,4488.6,0.297]
[1758104592128,0.95,4489.3,4488.7,0.0222]
[1758104592430,0.95,4489.3,4488.8,0.297]
[1758104592730,0.95,4489.3,4489.2,0.2062]
[1758104593024,0.95,4489.3,4489.2,0.5032]
[1758104594524,0.95,4489.3,4489.2,0.2062]
[1758104594824,0.95,4489.3,4489.2,0.5032]
[1758104595333,0.95,4489.3,4489.2,0.2062]
[1758104596331,0.95,4489.3,4488.7,0.0222]
[1758104596522,0.95,4489.3,4488.7,0.3192]
[1758104597124,0.725,4488.8,4488.7,0.5254]
[1758104597527,0.725,4488.8,4488.7,0.7122]
[1758104599625,0.725,4488.8,4488.6,1.481]
[1758104599834,0.3533,4489.0,4488.6,1.481]
[1758104599835,0.725,4488.7,4488.6,1.481]
[1758104600334,0.725,4488.7,4488.6,1.9842]
[1758104600525,0.725,4488.7,4488.6,0.5032]
[1758104601931,0.5342,4488.5,4488.4,0.0222]
[1758104602135,0.8543,4488.5,4488.4,0.5254]
[1758104602934,0.725,4488.5,4488.4,0.7344]
[1758104603839,0.8435,4488.5,4488.4,0.0222]
[1758104604537,0.8435,4488.5,4487.9,0.3016]
[1758104604538,1.36006259,4488.5,4487.9,0.3016]
[1758104604738,0.7221,4488.0,4487.9,0.5174]
[1758104604929,0.7221,4488.0,4487.9,0.7238]
[1758104606029,0.3222,4488.3,4487.9,0.7238]
[1758104606231,0.1979,4488.1,4488.0,0.5518]
[1758104606639,0.5201,4488.1,4488.0,0.5518]
[1758104606935,0.5201,4488.1,4488.0,0.8534]
[1758104607733,0.7221,4488.1,4488.0,0.7238]
[1758104610637,0.5472,4488.5,4488.0,0.5518]
[1758104610838,0.9471,4488.6,4488.5,0.7238]
[1758104611439,0.9471,4488.6,4488.5,0.8534]
[1758104611936,0.7221,4488.6,4488.5,0.8534]
[1758104613139,0.7221,4488.6,4488.5,0.7238]
[1758104614244,0.7221,4488.6,4488.5,0.5174]
[1758104614739,0.7221,4488.6,4488.5,0.8534]
[1758104614942,0.5472,4488.7,4488.5,0.5518]
[1758104615140,0.5201,4488.7,4488.6,0.7238]
[1758104615336,32.09,4489.4,4488.7,0.3016]
[1758104615539,1.46245626,4489.3,4489.2,0.4222]
[1758104615838,1.46245626,4489.3,4489.2,0.7238]
[1758104618143,1.23745626,4489.3,4489.2,0.7238]
[1758104618545,1.46245626,4489.3,4489.2,0.7238]
[1758104622149,1.46245626,4489.3,4488.6,0.3016]
[1758104622350,0.9471,4489.3,4488.6,0.3016]
[1758104622946,0.6249,4489.3,4489.2,0.2158]
[1758104623146,1.46273183,4489.3,4489.2,0.5174]
[1758104623350,1.46273183,4489.3,4489.2,0.2158]
[1758104625253,1.46273183,4489.3,4489.2,0.5174]
[1758104625553,0.9471,4489.3,4489.2,0.5174]
[1758104626447,0.7221,4489.3,4489.2,0.5174]
[1758104626642,0.9471,4489.3,4489.2,0.5174]
[1758104627452,1.46270265,4489.3,4489.0,0.0222]
[1758104627654,0.9471,4489.3,4489.0,0.0222]
[1758104629754,1.16986,4489.3,4489.0,0.0222]
[1758104629960,0.7221,4489.1,4489.0,0.0222]
[1758104630160,1.23769364,4489.1,4489.0,0.0222]
[1758104630359,0.1185,4489.0,4488.6,1.481]
[1758104630561,0.3999,4488.7,4488.6,1.481]
[1758104630764,0.9471,4488.7,4488.6,1.481]
[1758104633164,0.9471,4488.7,4487.6,1.481]
[1758104633362,0.3181,4488.6,4487.8,0.3045]
[1758104633664,0.8493,4488.5,4488.4,0.5002]
[1758104636565,0.7245,4488.5,4488.4,0.7078]
[1758104641468,1.37003886,4488.5,4488.2,0.0222]
[1758104641665,0.7075,4488.3,4488.2,0.0222]
[1758104641969,1.22333886,4488.3,4487.8,1.481]
[1758104642173,0.1297,4488.5,4487.8,1.981]
[1758104642174,0.4094,4487.9,4487.8,1.981]
[1758104642362,0.7075,4487.9,4487.8,1.981]
[1758104643059,0.7075,4487.2,4487.1,0.1959]
[1758104643264,0.7075,4487.2,4487.1,0.3944]
[1758104643666,0.7075,4487.2,4487.1,0.6985]
[1758104644067,0.7075,4487.2,4487.1,0.1959]
[1758104644469,0.7075,4487.2,4487.1,0.5]
[1758104645068,0.7075,4487.2,4487.1,0.1959]
[1758104645866,0.7075,4487.2,4487.1,0.5]
[1758104646366,0.89908898,4487.2,4487.1,0.5]
[1758104647167,0.89908898,4487.2,4487.1,0.6985]
[1758104652376,0.89893455,4487.2,4487.1,0.6985]
[1758104652775,0.89893455,4487.2,4487.1,0.1959]
[1758104653567,0.8372,4487.0,4486.9,0.0222]
[1758104653778,1.02863455,4487.0,4486.9,0.2181]
[1758104653980,1.02863455,4487.0,4486.9,0.5]
[1758104654873,0.89893455,4487.0,4486.9,0.6985]
[1758104656183,1.02863455,4487.0,4486.9,0.6985]
[1758104656480,1.02863455,4487.0,4486.6,0.31042875]
[1758104656677,0.69893455,4486.9,4486.8,0.6985]
[1758104657184,0.89893455,4486.9,4486.8,0.6985]
[1758104658476,0.40083455,4486.9,4486.8,0.6985]
[1758104658876,0.69893455,4486.9,4486.8,0.6985]
[1758104659377,0.89893455,4486.9,4486.8,0.6985]
[1758104661083,0.69893455,4486.9,4486.8,0.6985]
[1758104663184,0.89893455,4486.9,4486.8,0.6985]
[1758104666380,0.89913134,4486.9,4486.8,0.6985]
[1758104667178,0.89913134,4486.9,4486.6,0.02852875]
[1758104667179,5.12200134,4486.9,4486.6,0.02852875]
[1758104667384,0.7393,4485.8,4485.7,0.4971]
[1758104667684,0.93093134,4485.8,4485.7,0.4971]
[1758104667885,0.93093134,4485.8,4485.7,0.7025]
[1758104670297,0.93094743,4485.8,4485.7,0.7025]
[1758104671387,0.40684743,4485.8,4485.7,0.7025]
[1758104673097,0.19164743,4485.8,4485.7,0.7025]
[1758104673798,0.72804743,4485.8,4485.7,0.7025]
[1758104674096,0.4181,4485.5,4485.4,0.4971]
[1758104674292,0.60974743,4485.5,4485.4,0.7025]
[1758104674894,0.93094743,4485.5,4485.4,0.7025]
[1758104675594,0.40684743,4485.5,4485.4,0.7025]
[1758104675800,0.93094743,4485.5,4485.4,0.7025]
[1758104675993,0.40684743,4485.5,4485.4,0.7025]
[1758104677490,0.19164743,4485.5,4485.4,0.7025]
[1758104677695,0.19164743,4485.5,4485.4,0.4095]
[1758104678298,0.19164743,4485.5,4485.4,0.7025]
[1758104678695,0.19164743,4485.5,4485.4,0.4095]
[1758104679194,0.19164743,4485.7,4485.4,0.7025]
[1758104679401,0.19164743,4485.6,4485.5,0.8237]
[1758104679896,0.19164743,4486.0,4485.5,0.8237]
[1758104680095,0.19164743,4486.0,4485.9,0.4095]
[1758104680298,0.19164743,4486.0,4485.9,0.7025]
[1758104680804,0.72804743,4486.0,4485.9,0.7025]
[1758104680997,0.93094743,4486.0,4485.9,0.7025]
[1758104684802,0.19164743,4486.0,4485.9,0.7025]
[1758104684999,0.19164743,4486.2,4485.9,0.4095]
[1758104685199,0.19164743,4486.2,4485.5,0.1212]
[1758104685200,0.19164743,4486.1,4486.0,0.5307]
[1758104685499,0.3212,4486.4,4486.1,0.293]
[1758104685702,0.5364,4486.4,4486.3,0.7025]
[1758104686008,0.7324286,4486.4,4486.3,0.7025]
[1758104687406,0.9353286,4486.4,4486.3,0.7025]
[1758104688804,0.1960286,4486.4,4486.3,0.7025]
[1758104689006,0.4112286,4486.4,4486.3,0.7025]
[1758104689212,0.7324286,4486.4,4486.3,0.7025]
[1758104689597,0.9353286,4486.4,4486.3,0.7025]
[1758104691310,0.93542064,4486.4,4486.3,0.7025]
[1758104697527,0.93544534,4486.4,4486.3,0.7025]
[1758104698330,0.73254534,4486.4,4486.3,0.7025]
[1758104700432,0.5364,4486.4,4486.3,0.7025]
[1758104700733,0.94610538,4486.4,4486.3,0.7025]
[1758104701334,0.48960538,4486.4,4486.3,0.7025]
[1758104701631,0.19610538,4486.4,4486.3,0.7025]
[1758104702428,1.0,4487.2,4487.1,0.3052]
[1758104702625,1.0,4487.2,4487.1,0.7191]
[1758104705838,1.4886,4487.2,4487.1,0.7191]
[1758104706523,0.4087,4486.5,4486.4,1.481]
[1758104706724,0.8285,4486.5,4486.4,1.481]
[1758104707236,0.8285,4486.5,4485.9,0.3052]
[1758104708023,0.8285,4486.0,4485.9,0.3052]
[1758104708223,0.8285,4486.0,4485.9,0.5166]
[1758104709833,0.8285,4486.0,4485.6,0.3274]
[1758104710030,0.8285,4486.0,4485.6,0.0222]
[1758104710740,0.1951,4485.4,4485.3,0.65729608]
[1758104710935,0.7022,4485.4,4485.3,1.16499608]
[1758104713340,0.1951,4485.4,4485.3,1.16499608]
[1758104713538,0.4886,4485.4,4485.3,0.65729608]
[1758104713736,0.7022,4485.4,4485.3,0.85979608]
[1758104714133,0.7022,4485.4,4485.3,1.16499608]
[1758104714335,0.2935,4485.8,4485.3,1.16499608]
[1758104714537,0.4886,4485.9,4485.8,0.4139]
[1758104714734,0.7022,4485.9,4485.8,0.7191]
[1758104715532,0.7022,4485.9,4485.8,0.2114]
[1758104715737,0.7022,4485.9,4485.8,0.5166]
[1758104716941,0.7022,4485.9,4485.8,0.7191]
[1758104717135,0.4886,4485.9,4485.8,0.7191]
[1758104717540,0.4087,4485.4,4485.3,0.44589608]
[1758104717739,0.7022,4485.4,4485.3,0.44589608]
[1758104718538,0.7022,4485.4,4485.3,1.16499608]
[1758104720440,0.1951,4485.4,4485.3,1.16499608]
[1758104721739,0.4886,4485.7,4485.6,0.4139]
[1758104721939,0.4886,4485.7,4485.6,0.7191]
[1758104722539,0.7022,4485.7,4485.6,0.7191]
[1758104725245,0.4164,4485.4,4485.3,0.74949608]
[1758104725455,0.7338,4485.4,4485.3,0.96089608]
[1758104725749,0.7338,4485.4,4485.3,1.17619608]
[1758104727349,0.7338,4485.4,4485.3,0.44589608]
[1758104727551,0.7338,4485.4,4485.3,0.96089608]
[1758104728051,0.7338,4485.4,4485.3,1.17619608]
[1758104728649,0.7338,4485.4,4485.3,0.44589608]
[1758104728850,0.7338,4485.4,4485.3,1.17619608]
[1758104731353,0.7338,4485.4,4485.3,0.96089608]
[1758104731549,0.7338,4485.4,4485.3,1.17619608]
[1758104734055,0.7338,4485.9,4485.8,0.2153]
[1758104734259,0.7338,4485.9,4485.3,0.44589608]
[1758104734455,0.3174,4485.8,4485.3,0.44589608]
[1758104734657,0.1263,4486.0,4485.4,0.515]
[1758104734658,0.4164,4485.5,4485.4,0.515]
[1758104734854,0.7338,4485.5,4485.4,0.515]
[1758104735458,0.7338,4485.5,4485.4,0.7303]
[1758104737457,0.5336,4485.5,4485.4,0.7303]
[1758104737759,0.4164,4485.8,4485.7,0.4267]
[1758104738056,0.7338,4485.8,4485.7,0.7303]
[1758104739759,0.1263,4486.5,4486.0,0.128]
[1758104739760,0.3174,4486.1,4486.0,0.128]
[1758104739960,0.1263,4486.5,4486.0,0.128]
[1758104739961,0.1263,4486.5,4486.0,0.8583]
[1758104740156,0.5336,4486.2,4486.1,0.5189]
[1758104740362,0.5336,4486.2,4486.1,0.7303]
[1758104741057,0.7338,4486.2,4486.1,0.7303]
[1758104743862,0.7338,4486.2,4485.6,0.3036]
[1758104744759,0.7338,4486.2,4486.1,0.2114]
[1758104745063,0.7338,4486.2,4486.1,0.515]
[1758104745255,0.7338,4486.2,4486.1,0.7303]
[1758104747657,0.2162,4486.2,4486.1,0.7303]
[1758104747858,0.3174,4486.4,4486.1,0.7303]
[1758104748065,0.3174,4486.4,4486.1,0.4267]
[1758104748266,0.5427,4487.0,4486.9,0.2114]
[1758104748469,0.5427,4487.0,4486.9,0.515]
[1758104748767,0.5427,4487.0,4486.9,0.2114]
[1758104748963,0.8601,4487.0,4486.9,0.2114]
[1758104749361,0.8601,4487.0,4486.6,0.3036]
[1758104749560,0.8601,4487.0,4486.1,0.3036]
[1758104751368,0.8601,4487.0,4486.9,0.515]
[1758104752263,0.8601,4487.0,4486.6,0.3036]
[1758104752464,0.8601,4487.0,4486.9,0.2114]
[1758104752964,0.8601,4487.0,4486.7,0.3327]
[1758104755364,0.8601,4487.0,4486.7,0.0222]
[1758104756363,0.8601,4487.0,4486.7,0.337]
[1758104756663,0.8601,4487.0,4486.7,0.0222]
[1758104756871,0.8601,4487.0,4486.8,0.3148]
[1758104757970,0.8601,4487.0,4486.7,0.0222]
[1758104759969,0.8601,4487.0,4486.7,0.337]
[1758104760275,0.8601,4487.0,4486.7,0.0222]
[1758104760570,0.8601,4487.0,4486.8,0.3148]
[1758104761467,0.8601,4487.0,4486.9,0.7317]
[1758104763269,0.7338,4487.0,4486.9,0.7317]
[1758104764672,0.8515,4487.0,4486.9,0.7317]
[1758104764872,0.8515,4487.0,4486.9,0.2044]
[1758104765068,0.8515,4487.0,4486.7,0.0222]
[1758104765466,0.8515,4487.0,4486.8,0.3148]
[1758104766071,0.8515,4487.0,4486.7,0.0222]
[1758104767363,0.8515,4487.0,4486.7,0.337]
[1758104767763,0.8515,4487.0,4486.7,0.0222]
[1758104768174,0.8515,4487.0,4486.8,0.3148]
[1758104769070,0.8515,4487.0,4486.9,0.5192]
[1758104769772,0.7338,4487.0,4486.9,0.7317]
[1758104777871,1.0,4487.2,4486.7,0.0222]
[1758104777872,0.5166,4487.1,4487.0,0.1202]
[1758104778081,0.5166,4487.1,4487.0,0.8519]
[1758104778275,0.7282,4487.1,4487.0,0.7317]
[1758104778673,1.0,4487.2,4487.1,0.3148]
[1758104778877,1.0,4487.2,4487.1,2.33262418]
[1758104779075,1.0,4487.2,4487.1,0.7317]
[1758104779275,1.7282,4487.2,4487.1,2.3345729]
[1758104779568,1.7282,4487.2,4487.1,0.7317]
[1758104779974,1.7282,4487.2,4487.1,0.2044]
[1758104780173,0.8459,4487.0,4486.9,1.8072729]
[1758104780372,0.8459,4487.0,4486.9,0.5192]
[1758104780567,0.8459,4487.0,4486.9,0.7317]
[1758104781771,0.3176,4486.9,4486.7,1.6250729]
[1758104781976,0.7282,4486.9,4486.8,0.7317]
[1758104787876,1.0,4487.2,4486.8,0.7317]
[1758104788081,1.0,4487.2,4486.8,0.4169]
[1758104788282,0.1968,4487.0,4486.9,0.727]
[1758104788579,0.5205,4487.0,4486.9,0.727]
[1758104792578,1.5205,4487.2,4487.1,0.727]
[1758104793684,1.7327,4487.2,4487.1,0.727]
[1758104798091,1.7327,4487.2,4486.9,0.0222]
[1758104798293,1.7327,4487.2,4487.1,0.1953]
[1758104798695,1.7327,4487.2,4487.1,0.5194]
[1758104799194,1.7327,4487.2,4487.1,0.727]
[1758104803700,1.7327,4487.2,4487.1,0.1953]
[1758104806010,1.7327,4487.2,4486.9,0.3463]
[1758104806011,0.1267,4487.0,4486.9,0.0222]
[1758104806206,0.8594,4487.0,4486.9,0.0222]
[1758104806509,0.3237,4486.9,4486.6,1.9269729]
[1758104806810,0.7327,4486.7,4486.6,2.1222729]
[1758104807412,0.7327,4486.7,4486.6,2.3298729]
[1758104807712,0.7327,4486.7,4486.6,0.727]
[1758104808806,0.5205,4486.7,4486.6,0.727]
[1758104809004,0.3237,4487.1,4486.7,0.3241]
[1758104809205,0.5205,4487.1,4487.0,0.727]
[1758104809401,0.7327,4487.1,4487.0,0.727]
[1758104809804,0.7327,4487.1,4487.0,0.8542]
[1758104811805,1.0,4487.2,4487.0,0.5301]
[1758104812006,1.0,4487.2,4487.1,0.727]
[1758104812410,1.5205,4487.2,4487.1,0.727]
[1758104815917,1.5205,4487.2,4487.1,2.3305005]
[1758104816414,1.727,4487.2,4487.1,2.3305005]
[1758104817215,1.727,4487.2,4487.1,0.727]
[1758104820006,1.1968,4487.2,4487.1,2.3305005]
[1758104820519,1.5079,4487.2,4487.1,0.727]
[1758104820818,1.5079,4487.2,4487.0,0.7058]
[1758104820819,0.7213,4487.1,4487.0,0.7058]
[1758104826420,0.7213,4487.1,4487.0,0.9298]
[1758104827621,0.7213,4487.1,4487.0,1.0479]
[1758104829023,1.0,4487.2,4487.1,0.7058]
[1758104829324,1.5202,4487.2,4487.1,0.7058]
[1758104830622,1.7213,4487.2,4487.1,0.7058]
[1758104834724,1.7213,4487.2,4487.1,2.1868]
[1758104836328,1.7213,4487.2,4487.1,1.481]
[1758104837424,0.7213,4486.9,4486.8,0.0222]
[1758104837829,0.7213,4486.9,4486.7,0.224]
[1758104838027,0.3111,4486.2,4486.0,2.30437958]
[1758104838228,0.7213,4486.2,4486.1,0.224]
[1758104838424,0.7213,4486.2,4486.1,0.7282]
[1758104841234,0.7213,4486.2,4486.1,0.4233]
[1758104841434,0.7213,4486.2,4486.1,0.7282]
[1758104842632,0.3111,4486.2,4486.1,0.9298]
[1758104842842,0.5068,4486.2,4486.1,0.9298]
[1758104843032,0.5068,4486.2,4486.1,0.203]
[1758104843033,0.7229,4486.2,4486.1,0.203]
[1758104843233,0.7229,4486.2,4486.1,0.5123]
[1758104843638,0.535,4486.0,4485.9,0.5555]
[1758104843835,0.835,4486.0,4485.9,0.7585]
[1758104845539,0.835,4486.0,4485.9,0.7363]
[1758104845933,0.835,4486.0,4485.9,0.7209]
[1758104846638,0.7118,4486.0,4485.9,0.7209]
[1758104848538,0.835,4486.0,4485.3,0.44589608]
[1758104848735,0.4957,4485.5,4485.4,0.9449]
[1758104851638,0.3,4485.8,4485.4,0.9449]
[1758104851839,0.7118,4486.0,4485.9,0.7209]
[1758104853446,0.4957,4486.0,4485.9,0.7209]
[1758104853647,0.1957,4486.0,4485.9,0.7209]
[1758104854036,0.4957,4486.0,4485.9,0.7209]
[1758104854241,0.7118,4486.0,4485.9,0.7209]
[1758104857951,0.7118,4486.9,4486.8,0.5123]
[1758104865361,0.7118,4486.9,4486.8,0.203]
[1758104865560,0.7118,4486.9,4486.6,0.0222]
[1758104865760,0.7118,4486.9,4486.6,0.3315]
[1758104865962,0.7118,4486.9,4486.7,0.3093]
[1758104867263,0.7118,4486.9,4486.8,0.7209]
[1758104878075,0.3226,4487.4,4486.9,0.3168]
[1758104878379,0.2141,4487.0,4486.9,0.7107]
[1758104878677,0.5367,4487.0,4486.9,0.7107]
[1758104880376,0.7404,4487.0,4486.9,0.7107]
[1758104880978,0.8696,4487.0,4486.9,0.5156]
[1758104883875,0.8696,4487.0,4486.9,0.7107]
[1758104886076,0.8696,4487.0,4486.7,0.0222]
[1758104886474,0.7404,4486.8,4486.7,0.0222]
[1758104886674,0.7404,4486.8,4485.8,0.3168]
[1758104886675,0.1292,4486.0,4485.8,0.3168]
[1758104886869,0.7404,4485.9,4485.8,0.5156]
[1758104889879,0.7404,4485.9,4485.8,0.7107]
[1758104896180,0.1292,4487.0,4485.8,0.7107]
[1758104896381,0.54550001,4486.9,4485.9,0.3168]
[1758104896685,0.7404,4486.0,4485.9,0.7107]
[1758104904587,0.411,4485.5,4485.4,0.7163]
[1758104904791,0.8523,4485.5,4485.4,0.1981]
[1758104905182,0.8523,4485.5,4485.4,0.5144]
[1758104905376,0.8523,4485.5,4485.3,0.44589608]
[1758104905377,0.533,4485.5,4485.3,0.44589608]
[1758104905584,0.7303,4485.4,4485.3,0.44589608]
[1758104905784,0.7303,4485.4,4485.3,0.96029608]
[1758104908497,0.7303,4485.4,4485.3,1.16219608]
[1758104923510,0.3193,4485.9,4485.3,0.84589608]
[1758104923698,0.5201,4485.9,4485.8,0.7163]
[1758104925704,0.1292,4486.5,4485.9,0.3163]
[1758104926009,0.95321,4486.4,4486.3,0.7163]
[1758104926710,0.7303,4486.4,4486.3,0.7163]
[1758104929214,0.7303,4486.4,4485.8,0.3163]
[1758104931312,0.7303,4486.4,4486.3,0.1981]
[1758104931513,0.7303,4486.4,4486.3,0.7163]
[1758104942523,0.4048,4485.8,4485.7,0.5343]
[1758104942722,0.7224,4485.8,4485.7,0.7436]
[1758104942924,0.7224,4485.8,4485.7,0.7214]
[1758104945327,0.5124,4485.8,4485.7,0.7214]
[1758104949927,0.118,4486.5,4485.7,0.7214]
[1758104950124,0.118,4486.5,4485.5,0.1188]
[1758104950125,0.3176,4486.4,4485.8,0.3173]
[1758104950325,0.1948,4485.9,4485.8,0.7214]
[1758104951320,0.3176,4486.9,4486.0,0.129]
[1758104951524,0.7224,4486.9,4486.8,0.5121]
[1758104952126,0.7224,4486.9,4486.8,0.1948]
[1758104952326,0.7224,4486.9,4486.6,0.3173]
[1758104952526,0.7224,4486.9,4486.1,0.3173]
[1758104962731,0.7224,4486.9,4486.8,0.1948]
[1758104962938,0.7224,4486.9,4486.8,0.7046]
[1758104965140,0.7224,4486.9,4486.8,0.5067]
[1758104965436,0.7224,4486.9,4486.8,0.1948]
[1758104965840,0.7224,4486.9,4486.8,0.5067]
[1758104966842,0.7224,4486.9,4486.0,0.129]
[1758104966843,0.7224,4486.9,4486.1,0.3119]
[1758104967034,0.7224,4486.9,4486.2,0.3119]
[1758104967035,0.3066,4486.8,4486.2,0.3119]
[1758104967241,0.7164,4486.3,4486.2,0.7226]
[1758104967942,0.5096,4486.3,4486.2,0.7226]
[1758104968139,0.3066,4486.9,4486.3,0.3119]
[1758104968444,0.7164,4486.9,4486.8,0.5247]
[1758104968947,0.7164,4486.9,4486.8,0.7226]
[1758104974051,0.3066,4487.1,4486.8,0.7226]
[1758104974251,0.3066,4487.1,4487.0,0.8519]
[1758104974445,0.5096,4487.1,4487.0,0.8519]
[1758104976251,0.7164,4487.1,4487.0,0.8519]
[1758104977248,0.5096,4487.1,4487.0,0.8519]
[1758104977449,0.203,4487.1,4487.0,0.8519]
[1758104977650,0.5096,4487.1,4487.0,0.8519]
[1758104978656,0.7164,4487.1,4487.0,0.8519]
[1758104993467,0.4153,4486.9,4486.8,0.0222]
[1758104993663,0.2006,4486.9,4486.8,0.7343]
[1758104994070,0.7081,4486.9,4486.8,0.7343]
[1758104995769,0.4934,4486.9,4486.8,0.7343]
[1758104996068,0.4934,4486.9,4486.8,0.7121]
[1758104996269,0.7338,4487.4,4487.3,0.2161]